bitfinex-derivatives/quotes_BTCF0:USTF0_20250905
["timestamp","ask_amount","ask_price","bid_price","bid_amount"]
[1757105342925,0.38371,111470.0,111460.0,0.76093367]
[1757105343127,0.74451,111470.0,111460.0,0.76093367]
[1757105343318,0.74451,111470.0,111460.0,0.76293367]
[1757105344827,0.75746,111470.0,111460.0,0.76293367]
[1757105346531,0.74451,111470.0,111460.0,0.76293367]
[1757105347131,0.74451,111470.0,111460.0,0.39776]
[1757105347331,0.74451,111470.0,111460.0,0.76293367]
[1757105355336,0.3608,111470.0,111460.0,1.01293367]
[1757105355529,0.36113462,111480.0,111470.0,0.03527]
[1757105355728,0.36093462,111480.0,111470.0,1.59864367]
[1757105363236,0.36093462,111480.0,111470.0,2.30352014]
[1757105363435,0.361,111490.0,111480.0,0.76561734]
[1757105363436,0.0002,111490.0,111480.0,0.76561734]
[1757105363637,0.38371,111500.0,111490.0,0.03527]
[1757105363830,0.38351,111500.0,111490.0,1.52856367]
[1757105364035,0.02271,111500.0,111490.0,1.52856367]
[1757105365540,0.02271,111500.0,111490.0,1.88936367]
[1757105366833,0.02671,111500.0,111490.0,1.88936367]
[1757105374635,0.004,111500.0,111490.0,1.88936367]
[1757105379242,0.004,111500.0,111490.0,1.52419]
[1757105379437,0.004,111500.0,111490.0,1.88936367]
[1757105379643,0.004,111500.0,111490.0,1.52419]
[1757105379943,0.004,111500.0,111490.0,1.88936367]
[1757105386152,0.01708,111500.0,111490.0,1.88936367]
[1757105387446,0.004,111500.0,111490.0,1.88936367]
[1757105391454,0.004,111500.0,111490.0,1.8891602]
[1757105395151,0.004,111500.0,111490.0,2.3438172]
[1757105396153,0.002,111500.0,111490.0,2.3438172]
[1757105396357,0.001,111500.0,111490.0,2.3438172]
[1757105398058,0.02281,111500.0,111490.0,1.978847]
[1757105400671,0.02281,111500.0,111490.0,1.8891602]
[1757105401467,0.37409926,111510.0,111490.0,1.978847]
[1757105401668,0.39690926,111510.0,111500.0,0.3999302]
[1757105401866,0.39670926,111510.0,111500.0,0.7699302]
[1757105402263,0.3877802,111510.0,111500.0,0.7699302]
[1757105402463,0.3877802,111510.0,111500.0,0.40496]
[1757105402663,0.39678567,111510.0,111500.0,0.7699302]
[1757105403569,0.39778567,111510.0,111500.0,0.7699302]
[1757105404172,0.39878567,111510.0,111500.0,0.7699302]
[1757105404470,0.39878567,111510.0,111500.0,0.7499302]
[1757105405373,0.41186567,111510.0,111500.0,0.38496]
[1757105405873,0.41186567,111510.0,111500.0,0.7499302]
[1757105406370,0.77266567,111510.0,111500.0,0.7499302]
[1757105406570,0.77266567,111510.0,111500.0,0.3999302]
[1757105408474,0.75958567,111510.0,111500.0,0.3999302]
[1757105408770,0.3897802,111510.0,111500.0,1.0949004]
[1757105408973,0.002,111510.0,111500.0,1.0949004]
[1757105409167,0.002,111510.0,111500.0,1.4345791]
[1757105409472,0.002,111510.0,111500.0,1.7953791]
[1757105411673,0.002,111510.0,111500.0,1.0654387]
[1757105411865,0.002,111510.0,111500.0,1.7953791]
[1757105412066,0.002,111510.0,111500.0,1.0654387]
[1757105412376,0.002,111510.0,111500.0,1.7953791]
[1757105419679,0.002,111510.0,111500.0,1.90792936]
[1757105420778,0.002,111510.0,111500.0,1.7953791]
[1757105421571,0.0002,111520.0,111510.0,0.1027106]
[1757105421782,0.3608,111540.0,111510.0,0.1027106]
[1757105421783,0.0002,111530.0,111520.0,0.0349]
[1757105421985,0.75584733,111540.0,111530.0,0.0349]
[1757105422174,0.39067713,111540.0,111530.0,0.7498702]
[1757105422374,0.3818,111540.0,111530.0,1.5672302]
[1757105422578,0.021,111540.0,111530.0,1.20226]
[1757105422885,0.021,111540.0,111530.0,1.5672302]
[1757105423178,0.271,111540.0,111530.0,1.9280302]
[1757105423584,0.278,111540.0,111530.0,1.9280302]
[1757105424180,0.278,111540.0,111530.0,1.56306]
[1757105424378,0.278,111540.0,111530.0,1.9280302]
[1757105424579,0.278,111540.0,111530.0,1.92775602]
[1757105436691,0.2907,111540.0,111530.0,1.92775602]
[1757105436985,0.278,111540.0,111530.0,1.92775602]
[1757105439392,0.028,111540.0,111530.0,1.92775602]
[1757105439592,0.028,111540.0,111530.0,1.56306]
[1757105439784,0.028,111540.0,111530.0,1.92775602]
[1757105441093,0.007,111540.0,111530.0,2.29245204]
[1757105441694,0.007,111540.0,111530.0,2.38210664]
[1757105441993,0.07130717,111550.0,111540.0,0.1245465]
[1757105441994,0.0002,111550.0,111540.0,0.1245465]
[1757105442181,0.0002,111560.0,111550.0,0.1245385]
[1757105442383,0.0002,111570.0,111560.0,0.0349]
[1757105442584,0.0212,111580.0,111570.0,0.0349]
[1757105442780,0.021,111580.0,111570.0,0.74959602]
[1757105443385,0.0300334,111580.0,111570.0,0.74959602]
[1757105443581,0.39472942,111580.0,111570.0,0.74959602]
[1757105444593,0.0300334,111580.0,111570.0,0.74959602]
[1757105445102,0.0300334,111580.0,111570.0,0.3849]
[1757105445392,0.0300334,111580.0,111570.0,0.74959602]
[1757105446196,0.39472942,111580.0,111570.0,0.74959602]
[1757105446796,0.0300334,111580.0,111570.0,0.74959602]
[1757105447492,0.0428234,111580.0,111570.0,0.74959602]
[1757105448394,0.0428234,111580.0,111570.0,0.75159602]
[1757105449197,0.40751942,111580.0,111570.0,0.75159602]
[1757105449897,0.0428234,111580.0,111570.0,0.75159602]
[1757105451490,0.0428234,111580.0,111570.0,0.75137904]
[1757105452298,0.06746409,111580.0,111570.0,0.75137904]
[1757105455396,0.06746409,111580.0,111570.0,0.73833904]
[1757105455795,0.0674607,111580.0,111570.0,0.73833904]
[1757105456298,0.0674607,111580.0,111570.0,0.75205904]
[1757105456698,0.0456373,111580.0,111570.0,1.11653808]
[1757105456993,0.021,111580.0,111570.0,1.36653808]
[1757105457202,0.021,111580.0,111570.0,1.00205904]
[1757105459605,0.021,111580.0,111570.0,1.36285904]
[1757105459807,0.021,111580.0,111570.0,1.00205904]
[1757105460207,0.021,111580.0,111570.0,1.36285904]
[1757105460604,0.38257414,111590.0,111580.0,0.01372]
[1757105460605,0.39208414,111590.0,111580.0,0.01372]
[1757105460807,0.41651531,111590.0,111580.0,1.52790904]
[1757105461109,0.42930531,111590.0,111580.0,1.52790904]
[1757105465008,0.06850531,111590.0,111580.0,1.52990904]
[1757105465710,0.05571531,111590.0,111580.0,1.52990904]
[1757105468002,0.05571531,111590.0,111580.0,1.16543]
[1757105468202,0.05571531,111590.0,111580.0,1.52990904]
[1757105469307,1.04378435,111590.0,111580.0,0.04503]
[1757105470711,1.04378435,111590.0,111580.0,0.002]
[1757105470712,1.86034435,111590.0,111580.0,0.002]
[1757105471014,1.86034435,111590.0,111580.0,0.02303]
[1757105472112,1.86134435,111590.0,111580.0,0.02303]
[1757105472322,1.86234435,111590.0,111580.0,0.02303]
[1757105472525,1.49786531,111590.0,111580.0,0.02303]
[1757105472822,1.86234435,111590.0,111580.0,0.02303]
[1757105474517,1.86134435,111590.0,111580.0,0.02303]
[1757105475421,1.86234435,111590.0,111580.0,0.02303]
[1757105476723,0.05771531,111590.0,111580.0,0.40139904]
[1757105476921,0.05771531,111590.0,111580.0,0.75139904]
[1757105477621,0.41751531,111590.0,111580.0,0.75139904]
[1757105478222,0.41651531,111590.0,111580.0,0.75139904]
[1757105478715,0.41651531,111590.0,111580.0,0.75339904]
[1757105479122,0.42923531,111590.0,111580.0,0.75339904]
[1757105479321,0.79371435,111590.0,111580.0,0.37503]
[1757105480524,0.42923531,111590.0,111580.0,0.37503]
[1757105481024,0.42923531,111590.0,111580.0,0.37303]
[1757105482218,0.42923531,111590.0,111580.0,0.02303]
[1757105482420,0.42923531,111590.0,111580.0,0.34303]
[1757105484925,0.42923531,111590.0,111580.0,0.02303]
[1757105485126,0.42923531,111590.0,111580.0,0.38303]
[1757105486529,0.42923531,111590.0,111580.0,0.02303]
[1757105486832,0.42923531,111590.0,111580.0,0.39692]
[1757105487026,0.42923531,111590.0,111580.0,0.02303]
[1757105488330,0.40460414,111590.0,111580.0,0.02303]
[1757105488532,0.40460414,111590.0,111580.0,0.33303]
[1757105489029,0.40460414,111590.0,111580.0,0.02303]
[1757105489230,0.40460414,111590.0,111580.0,0.35303]
[1757105491427,0.40460414,111590.0,111580.0,0.02303]
[1757105491931,0.76908318,111590.0,111580.0,0.02303]
[1757105492432,0.40460414,111590.0,111580.0,0.02303]
[1757105492632,0.76908318,111590.0,111580.0,0.02303]
[1757105501737,0.77108318,111590.0,111580.0,0.02303]
[1757105506335,0.77108318,111590.0,111570.0,0.00013462]
[1757105506541,1.57724904,111580.0,111570.0,0.35281462]
[1757105507539,1.57724904,111580.0,111570.0,0.04013462]
[1757105511245,1.57724904,111580.0,111570.0,0.06281462]
[1757105513444,1.9419483,111580.0,111570.0,0.06281462]
[1757105515050,1.21277,111580.0,111570.0,0.06281462]
[1757105515250,1.9419483,111580.0,111570.0,0.06281462]
[1757105522858,1.9419483,111580.0,111570.0,0.04013462]
[1757105532167,2.30653745,111580.0,111570.0,0.04013462]
[1757105532368,2.1919483,111580.0,111570.0,0.04013462]
[1757105534675,1.46277,111580.0,111570.0,0.04013462]
[1757105535268,2.1919483,111580.0,111570.0,0.04013462]
[1757105542668,2.1919483,111580.0,111570.0,0.06257462]
[1757105543476,2.1919483,111580.0,111570.0,0.04013462]
[1757105555582,2.1915883,111580.0,111570.0,0.06257462]
[1757105557490,2.1915883,111580.0,111570.0,0.04013462]
[1757105559291,1.21241,111580.0,111570.0,0.06257462]
[1757105559492,1.9415883,111580.0,111570.0,0.06257462]
[1757105561393,1.9415883,111580.0,111570.0,0.04013462]
[1757105562394,1.9415883,111580.0,111570.0,0.06257462]
[1757105562592,1.9415883,111580.0,111570.0,0.04013462]
[1757105564996,2.3023883,111580.0,111570.0,0.04013462]
[1757105565199,2.3023883,111580.0,111570.0,0.06257462]
[1757105565500,1.4865483,111580.0,111570.0,0.06257462]
[1757105565796,2.3023083,111580.0,111570.0,0.02257462]
[1757105566590,2.3023083,111580.0,111570.0,0.00013462]
[1757105573402,2.3023083,111580.0,111570.0,0.02192462]
[1757105573706,2.3021883,111580.0,111570.0,0.02192462]
[1757105575505,1.93758999,111580.0,111570.0,0.02192462]
[1757105577007,1.93758999,111580.0,111570.0,0.00013462]
[1757105581107,1.93758999,111580.0,111570.0,0.02192462]
[1757105585813,1.93758999,111580.0,111570.0,0.00013462]
[1757105591215,1.96269381,111580.0,111570.0,0.00013462]
[1757105594916,1.96269381,111580.0,111570.0,0.02192462]
[1757105595615,1.96269381,111580.0,111570.0,0.00013462]
[1757105597818,1.96266877,111580.0,111570.0,0.00013462]
[1757105598011,1.96266877,111580.0,111570.0,0.02166462]
[1757105600822,1.93758999,111580.0,111570.0,0.02166462]
[1757105601722,1.93758999,111580.0,111570.0,0.00013462]
[1757105602424,1.93758999,111580.0,111570.0,0.02166462]
[1757105604334,1.93758999,111580.0,111570.0,0.00013462]
[1757105604628,1.93758999,111580.0,111570.0,0.02166462]
[1757105607429,1.93758999,111580.0,111570.0,0.00013462]
[1757105614236,1.93758999,111580.0,111570.0,0.02166462]
[1757105614434,1.93758999,111580.0,111570.0,0.00013462]
[1757105618438,1.93758999,111580.0,111570.0,0.02166462]
[1757105618737,1.93758999,111580.0,111570.0,0.00013462]
[1757105620438,1.96268128,111580.0,111570.0,0.00013462]
[1757105622542,1.96268262,111580.0,111570.0,0.00013462]
[1757105622938,1.93759133,111580.0,111570.0,0.00013462]
[1757105630758,1.96268011,111580.0,111570.0,0.00013462]
[1757105637455,2.69209036,111580.0,111570.0,0.00013462]
[1757105638157,2.3274265,111580.0,111570.0,0.00013462]
[1757105653069,1.5117865,111580.0,111570.0,0.02337462]
[1757105653365,0.78245878,111580.0,111570.0,0.63803848]
[1757105653567,0.02198,111580.0,111570.0,1.00200848]
[1757105655473,0.02198,111580.0,111570.0,1.00400848]
[1757105655966,1.20756414,111590.0,111580.0,0.03515]
[1757105656161,1.23243072,111590.0,111580.0,0.39981386]
[1757105656365,1.60983458,111590.0,111580.0,0.39981386]
[1757105656967,0.41783072,111590.0,111580.0,0.64981386]
[1757105657173,1.23238826,111590.0,111580.0,1.38447772]
[1757105657567,1.23238826,111590.0,111580.0,1.01981386]
[1757105658370,1.59705212,111590.0,111580.0,1.01981386]
[1757105658571,0.78249212,111590.0,111580.0,1.01981386]
[1757105659770,0.757428,111590.0,111580.0,1.01981386]
[1757105662276,0.757428,111590.0,111580.0,0.64981386]
[1757105662479,0.03196414,111590.0,111580.0,1.30447772]
[1757105662772,0.03196414,111590.0,111580.0,0.57515]
[1757105662972,0.03196414,111590.0,111580.0,1.30447772]
[1757105664982,0.02309,111590.0,111580.0,0.93981386]
[1757105665578,0.02309,111590.0,111580.0,1.30447772]
[1757105666584,0.02309,111590.0,111580.0,0.57515]
[1757105666585,0.76129386,111590.0,111580.0,0.57515]
[1757105666789,0.76129386,111590.0,111580.0,0.64515]
[1757105666985,0.76129386,111590.0,111580.0,0.28515]
[1757105667288,0.77007378,111590.0,111580.0,0.28515]
[1757105668588,0.77007378,111590.0,111580.0,0.27115]
[1757105669485,0.3608,111620.0,111610.0,0.03515]
[1757105669680,0.37354,111630.0,111610.0,1.90875772]
[1757105669890,0.39663,111630.0,111620.0,0.76447772]
[1757105670092,0.39663,111630.0,111620.0,1.09447772]
[1757105670789,0.03583,111630.0,111620.0,1.09447772]
[1757105671986,0.02309,111630.0,111620.0,1.09447772]
[1757105677693,0.02309,111630.0,111620.0,0.36515]
[1757105677893,0.02309,111630.0,111620.0,1.09447772]
[1757105678696,0.38775386,111630.0,111620.0,0.72981386]
[1757105680000,0.38775386,111630.0,111620.0,1.09447772]
[1757105680799,0.41270799,111630.0,111620.0,1.09447772]
[1757105680997,0.04804413,111630.0,111620.0,1.09447772]
[1757105685003,0.06078413,111630.0,111620.0,1.09447772]
[1757105685202,0.03583,111630.0,111620.0,1.09447772]
[1757105685698,0.02309,111630.0,111620.0,1.09447772]
[1757105688706,0.04807148,111630.0,111620.0,1.09447772]
[1757105689508,0.02309,111630.0,111620.0,1.09447772]
[1757105690603,0.02309,111630.0,111620.0,1.0933878]
[1757105694215,0.02309,111630.0,111620.0,0.36515]
[1757105694418,0.02309,111630.0,111620.0,1.0933878]
[1757105696313,0.02309,111630.0,111620.0,0.36515]
[1757105696512,0.02309,111630.0,111620.0,1.0933878]
[1757105696807,0.3872089,111630.0,111620.0,1.0933878]
[1757105697013,0.02309,111630.0,111620.0,1.0933878]
[1757105699127,0.04813875,111630.0,111620.0,1.0933878]
[1757105699414,0.04813875,111630.0,111620.0,0.72927618]
[1757105699918,0.04813875,111630.0,111620.0,0.39927618]
[1757105700119,0.04813875,111630.0,111620.0,0.72927618]
[1757105700619,0.02504875,111630.0,111620.0,0.72927618]
[1757105700820,0.39179121,111640.0,111630.0,0.03511]
[1757105701021,0.45584333,111640.0,111630.0,1.58287618]
[1757105701421,0.38576112,111640.0,111630.0,1.58287618]
[1757105701618,0.02496112,111640.0,111630.0,2.30780236]
[1757105701818,0.02496112,111640.0,111630.0,1.94367618]
[1757105702418,0.02596112,111640.0,111630.0,1.94367618]
[1757105703521,0.02696112,111640.0,111630.0,1.94367618]
[1757105704114,0.02696112,111640.0,111630.0,2.30780236]
[1757105704320,0.002,111640.0,111630.0,2.39737756]
[1757105704521,0.002,111640.0,111630.0,2.03325138]
[1757105704722,0.002,111640.0,111630.0,2.39737756]
[1757105705125,0.002,111640.0,111630.0,2.64737756]
[1757105713029,0.001,111640.0,111630.0,2.64737756]
[1757105713227,0.001,111640.0,111630.0,2.64937756]
[1757105713527,0.0002,111650.0,111640.0,0.1246772]
[1757105713718,0.03104543,111660.0,111650.0,0.03511]
[1757105713917,0.02174,111660.0,111650.0,1.93343618]
[1757105714728,0.02174,111660.0,111650.0,1.56931]
[1757105714928,0.03071019,111660.0,111650.0,1.56931]
[1757105715130,0.04429019,111660.0,111650.0,1.56931]
[1757105715430,0.04429019,111660.0,111650.0,1.93343618]
[1757105715632,0.04429019,111660.0,111650.0,1.93543618]
[1757105715927,0.04429019,111660.0,111650.0,1.12203618]
[1757105717533,0.04429019,111660.0,111650.0,0.76123618]
[1757105717824,0.40509019,111660.0,111650.0,0.39711]
[1757105718620,0.40509019,111660.0,111650.0,0.75908585]
[1757105718825,0.40509019,111660.0,111650.0,0.76108585]
[1757105719232,0.40509019,111660.0,111650.0,0.75908585]
[1757105720733,0.40509019,111660.0,111650.0,0.39908585]
[1757105721033,0.40509019,111660.0,111650.0,0.03511]
[1757105722334,0.40509019,111660.0,111650.0,0.35511]
[1757105734149,0.42874012,111660.0,111650.0,0.35511]
[1757105734846,0.79271597,111660.0,111650.0,0.34166]
[1757105735052,0.03537,111650.0,111640.0,0.8362]
[1757105735243,0.02236,111650.0,111640.0,0.78038585]
[1757105737453,0.02236,111650.0,111640.0,0.78238585]
[1757105744260,0.02236,111650.0,111640.0,1.14318585]
[1757105744958,0.03153019,111660.0,111650.0,0.03641]
[1757105745261,0.02236,111660.0,111650.0,1.93426585]
[1757105745750,0.03150014,111660.0,111650.0,1.93426585]
[1757105745950,0.03150014,111660.0,111650.0,1.57346585]
[1757105747959,0.03150014,111660.0,111650.0,1.57546585]
[1757105749255,0.02236,111660.0,111650.0,1.57546585]
[1757105750162,0.02236,111660.0,111650.0,1.21149]
[1757105750363,0.38316,111660.0,111650.0,1.57546585]
[1757105750662,0.39236029,111660.0,111650.0,1.57546585]
[1757105751952,0.76987614,111660.0,111650.0,0.38504]
[1757105752258,1.38385199,111660.0,111650.0,0.002]
[1757105752859,1.01987614,111660.0,111650.0,0.02308]
[1757105753555,1.01987614,111660.0,111650.0,0.02108]
[1757105753760,1.02087614,111660.0,111650.0,0.02108]
[1757105755368,1.02187614,111660.0,111650.0,0.02108]
[1757105757362,1.38585199,111660.0,111650.0,0.02108]
[1757105757565,0.0351,111640.0,111630.0,0.03463]
[1757105757767,0.0351,111640.0,111630.0,0.37453]
[1757105758966,0.02156,111640.0,111630.0,0.37453]
[1757105759660,0.02156,111640.0,111630.0,0.73850585]
[1757105760056,0.02156,111640.0,111630.0,0.74050585]
[1757105761466,0.38565162,111640.0,111630.0,0.74062162]
[1757105766169,0.38565162,111640.0,111630.0,0.85314377]
[1757105767365,0.39919162,111640.0,111630.0,0.48905215]
[1757105767565,0.39919162,111640.0,111630.0,0.85314377]
[1757105769470,0.02156,111640.0,111630.0,0.85314377]
[1757105769671,0.38565162,111640.0,111630.0,0.85314377]
[1757105770774,0.02156,111640.0,111630.0,0.85314377]
[1757105771677,0.02156,111640.0,111630.0,1.21394377]
[1757105774280,0.02156,111640.0,111630.0,1.10142162]
[1757105775384,0.38428,111650.0,111640.0,0.03538]
[1757105775590,0.38737162,111650.0,111640.0,1.10356324]
[1757105776892,0.38737162,111650.0,111640.0,0.73947162]
[1757105778596,0.38737162,111650.0,111640.0,0.74147162]
[1757105780989,0.76174162,111650.0,111640.0,0.40147162]
[1757105781188,0.76174162,111650.0,111640.0,0.72147162]
[1757105782493,0.38737162,111650.0,111640.0,0.72147162]
[1757105784197,0.02328,111650.0,111640.0,0.72147162]
[1757105784398,0.74817162,111650.0,111640.0,0.72147162]
[1757105786701,0.38737162,111650.0,111640.0,0.72147162]
[1757105788498,0.74817162,111650.0,111640.0,0.72147162]
[1757105788700,0.38737162,111650.0,111640.0,0.72147162]
[1757105792999,0.76174162,111650.0,111640.0,0.72147162]
[1757105796102,0.76174162,111650.0,111640.0,0.70827162]
[1757105799409,0.76174162,111650.0,111640.0,0.34418]
[1757105799612,1.12583324,111650.0,111640.0,0.012]
[1757105800813,1.12583324,111650.0,111640.0,0.01]
[1757105801007,1.12683324,111650.0,111640.0,0.01]
[1757105801208,1.12783324,111650.0,111640.0,0.01]
[1757105803412,1.12783324,111650.0,111640.0,0.03218]
[1757105804812,0.76374162,111650.0,111640.0,0.03218]
[1757105805008,1.57650162,111650.0,111640.0,0.04538]
[1757105805217,1.19884,111650.0,111640.0,0.40947162]
[1757105805411,1.56293162,111650.0,111640.0,0.40947162]
[1757105805817,1.57485162,111650.0,111640.0,0.03218]
[1757105806915,1.57385162,111650.0,111640.0,0.03218]
[1757105807115,1.57385162,111650.0,111640.0,0.02218]
[1757105808616,1.57385162,111650.0,111640.0,0.03573]
[1757105809720,0.76109162,111650.0,111640.0,0.03573]
[1757105809918,1.57381162,111650.0,111640.0,0.03573]
[1757105811219,1.56089162,111650.0,111640.0,0.03573]
[1757105812420,1.56089162,111650.0,111640.0,0.06573]
[1757105812922,1.57381162,111650.0,111640.0,0.06573]
[1757105813116,1.57381162,111650.0,111640.0,0.05218]
[1757105813320,1.57381162,111650.0,111640.0,0.39218]
[1757105815021,1.57381162,111650.0,111640.0,0.03218]
[1757105821425,1.57381529,111650.0,111640.0,0.03218]
[1757105822530,1.57381529,111650.0,111640.0,0.02218]
[1757105842051,1.20972,111650.0,111640.0,0.02218]
[1757105842346,1.57381529,111650.0,111640.0,0.02218]
[1757105848364,1.57381529,111650.0,111620.0,0.85151744]
[1757105848563,0.75936529,111640.0,111630.0,0.02265]
[1757105848762,0.75936529,111640.0,111630.0,0.36265]
[1757105849151,0.39527,111640.0,111630.0,0.36265]
[1757105849656,0.39527,111640.0,111630.0,0.37549]
[1757105850265,0.39527,111640.0,111630.0,0.37749]
[1757105852465,0.39527,111640.0,111630.0,0.36465]
[1757105853163,0.75936529,111640.0,111630.0,0.36465]
[1757105855069,0.39527,111640.0,111630.0,0.36465]
[1757105856866,0.75936529,111640.0,111630.0,0.36465]
[1757105857066,0.39527,111640.0,111630.0,0.36465]
[1757105859269,0.75936529,111640.0,111630.0,0.36465]
[1757105860472,0.75936529,111640.0,111630.0,0.16465]
[1757105863168,0.75936529,111640.0,111630.0,0.33465]
[1757105864776,0.39527,111640.0,111630.0,0.33465]
[1757105865076,0.75936529,111640.0,111630.0,0.33465]
[1757105865266,0.39527,111640.0,111630.0,0.33465]
[1757105865467,0.75936529,111640.0,111630.0,0.33465]
[1757105865970,0.39527,111640.0,111630.0,0.33465]
[1757105866468,0.39527,111640.0,111630.0,0.34749]
[1757105866668,0.38182,111640.0,111630.0,0.34749]
[1757105870876,0.02102,111640.0,111630.0,0.34749]
[1757105871472,0.361,111650.0,111630.0,1.52390529]
[1757105871680,0.38346,111650.0,111640.0,0.39795529]
[1757105871878,0.02246,111650.0,111640.0,0.70795529]
[1757105872178,0.02246,111650.0,111640.0,0.34386]
[1757105872579,0.38326,111650.0,111640.0,0.34386]
[1757105872981,0.38326,111650.0,111640.0,0.70795529]
[1757105874083,0.02246,111650.0,111640.0,0.70795529]
[1757105875076,0.37020029,111660.0,111640.0,0.70795529]
[1757105875383,1.20498029,111660.0,111650.0,0.39795529]
[1757105875585,1.20478029,111660.0,111650.0,0.03386]
[1757105876980,1.21755029,111660.0,111650.0,0.03386]
[1757105878086,1.20478029,111660.0,111650.0,0.03386]
[1757105879086,1.21755029,111660.0,111650.0,0.03386]
[1757105883484,0.39246029,111660.0,111650.0,0.39783951]
[1757105883688,1.1955,111660.0,111650.0,0.70783951]
[1757105883990,0.38326,111660.0,111650.0,0.70783951]
[1757105884988,0.74723951,111660.0,111650.0,0.70983951]
[1757105885193,0.38643951,111660.0,111650.0,0.70983951]
[1757105885586,0.02246,111660.0,111650.0,0.70983951]
[1757105887290,0.38326,111660.0,111650.0,0.70983951]
[1757105888683,0.76000951,111660.0,111650.0,0.71983951]
[1757105889201,0.76000951,111660.0,111650.0,0.35586]
[1757105889392,0.76000951,111660.0,111650.0,0.71983951]
[1757105890298,0.76000951,111660.0,111650.0,0.35586]
[1757105890489,0.39603,111660.0,111650.0,0.71983951]
[1757105890690,0.76000951,111660.0,111650.0,0.71983951]
[1757105891087,0.39603,111660.0,111650.0,0.71983951]
[1757105891390,0.76000951,111660.0,111650.0,0.71983951]
[1757105892694,0.39603,111660.0,111650.0,0.71983951]
[1757105892902,0.76000951,111660.0,111650.0,0.71983951]
[1757105893599,0.39603,111660.0,111650.0,0.71983951]
[1757105893792,0.76000951,111660.0,111650.0,0.71983951]
[1757105897303,0.76000951,111660.0,111650.0,0.39983951]
[1757105897702,0.39603,111660.0,111650.0,0.39983951]
[1757105897902,0.76000951,111660.0,111650.0,0.39983951]
[1757105898102,0.39603,111660.0,111650.0,0.70983951]
[1757105898406,0.38326,111660.0,111650.0,0.70983951]
[1757105901810,0.74723951,111660.0,111650.0,0.70983951]
[1757105906214,0.38326,111660.0,111650.0,0.70983951]
[1757105906414,0.74723951,111660.0,111650.0,0.70983951]
[1757105906716,0.74723951,111660.0,111650.0,0.34586]
[1757105906908,0.75992951,111660.0,111650.0,0.70983951]
[1757105909514,0.39595,111660.0,111650.0,0.70983951]
[1757105909714,0.75992951,111660.0,111650.0,0.70983951]
[1757105913220,0.75992951,111660.0,111650.0,0.34586]
[1757105913422,0.75992951,111660.0,111650.0,0.70983951]
[1757105914824,0.39595,111660.0,111650.0,0.70983951]
[1757105915023,0.75992951,111660.0,111650.0,0.70983951]
[1757105917221,0.39595,111660.0,111650.0,0.70983951]
[1757105917428,0.75992951,111660.0,111650.0,0.70983951]
[1757105918625,0.75992951,111660.0,111650.0,0.34586]
[1757105918822,0.75992951,111660.0,111650.0,0.70983951]
[1757105920526,0.39595,111660.0,111650.0,0.70983951]
[1757105920728,0.75992951,111660.0,111650.0,0.69699951]
[1757105921828,0.39595,111660.0,111650.0,0.69699951]
[1757105922024,0.75992951,111660.0,111650.0,0.69699951]
[1757105926430,0.39595,111660.0,111650.0,0.69699951]
[1757105926630,0.75992951,111660.0,111650.0,0.33302]
[1757105926831,0.75992951,111660.0,111650.0,0.69699951]
[1757105927933,0.39595,111660.0,111650.0,0.69699951]
[1757105928633,0.39595,111660.0,111650.0,0.71064951]
[1757105930633,0.39595,111660.0,111650.0,0.33302]
[1757105930829,1.20815,111660.0,111650.0,0.33302]
[1757105931026,1.93610902,111660.0,111650.0,0.33302]
[1757105931626,1.20815,111660.0,111650.0,0.33302]
[1757105931930,1.93610902,111660.0,111650.0,0.33102]
[1757105932132,1.93610902,111660.0,111650.0,0.33202]
[1757105932831,1.20815,111660.0,111650.0,0.33202]
[1757105933034,1.93610902,111660.0,111650.0,0.33202]
[1757105933731,1.19546,111660.0,111650.0,0.70964951]
[1757105934129,1.57245951,111660.0,111650.0,0.69599951]
[1757105934432,0.38326,111660.0,111650.0,0.70964951]
[1757105934635,0.74723951,111660.0,111650.0,0.34567]
[1757105934834,0.74723951,111660.0,111650.0,0.70964951]
[1757105935033,0.76025951,111660.0,111650.0,0.70964951]
[1757105935535,0.39628,111660.0,111650.0,0.70964951]
[1757105935735,0.76025951,111660.0,111650.0,0.69599951]
[1757105936133,0.76025951,111660.0,111650.0,0.33202]
[1757105936337,1.12423902,111660.0,111650.0,0.33202]
[1757105937036,1.12423902,111660.0,111650.0,0.02202]
[1757105940242,0.76025951,111660.0,111650.0,0.02202]
[1757105940739,1.12423902,111660.0,111650.0,0.02202]
[1757105945445,0.76032461,111660.0,111650.0,0.02202]
[1757105948148,1.01032461,111660.0,111650.0,0.351]
[1757105950549,1.37436922,111660.0,111650.0,0.011]
[1757105951649,1.37436922,111660.0,111650.0,0.001]
[1757105952850,1.40046552,111660.0,111650.0,0.001]
[1757105953449,1.37536922,111660.0,111650.0,0.001]
[1757105953642,0.72684461,111660.0,111630.0,0.36414461]
[1757105953848,1.17436,111650.0,111640.0,0.36404461]
[1757105954044,1.17436,111650.0,111640.0,0.42404461]
[1757105954843,1.17436,111650.0,111640.0,0.06]
[1757105955651,1.17436,111650.0,111640.0,0.061]
[1757105958852,1.17436,111650.0,111640.0,0.08393]
[1757105967053,1.53840461,111650.0,111640.0,0.08393]
[1757105970157,1.17436,111650.0,111640.0,0.08393]
[1757105970457,0.3608,111650.0,111640.0,0.44797461]
[1757105970656,0.3608,111650.0,111640.0,0.69797461]
[1757105971062,0.3608,111650.0,111640.0,0.71797461]
[1757105971660,0.3608,111650.0,111640.0,0.35393]
[1757105971957,0.3608,111650.0,111640.0,0.71797461]
[1757105974267,1.53796461,111660.0,111640.0,0.71797461]
[1757105974557,1.17388,111660.0,111650.0,0.38609461]
[1757105974758,1.17368,111660.0,111650.0,0.38609461]
[1757105975961,1.17368,111660.0,111650.0,0.75609461]
[1757105976161,1.17368,111660.0,111650.0,0.38609461]
[1757105976362,1.17368,111660.0,111650.0,0.72609461]
[1757105976865,0.3608,111660.0,111650.0,0.72609461]
[1757105977058,0.3618,111660.0,111650.0,0.72609461]
[1757105978057,0.3608,111660.0,111650.0,0.72609461]
[1757105978264,0.3608,111660.0,111650.0,0.72709461]
[1757105980359,0.44111954,111670.0,111650.0,0.97709461]
[1757105980563,1.25363954,111670.0,111660.0,0.38609461]
[1757105980767,0.44091954,111670.0,111660.0,0.72609461]
[1757105980964,0.46601675,111670.0,111660.0,0.72609461]
[1757105981258,0.3608,111670.0,111660.0,0.72609461]
[1757105982458,0.3608,111670.0,111660.0,0.97609461]
[1757105982859,0.3608,111670.0,111660.0,1.06564661]